[Event "DFMMLV 2024"]
[Site "Braunfels"]
[Date "2024.05.30"]
[Round "1.46"]
[White "Mazurtsova, Margarita"]
[Black "Lerch, Cornelia"]
[Result "1/2-1/2"]
[ECO "E51"]
[WhiteElo "1779"]
[BlackElo "1847"]
[Annotator "NA RC"]
[PlyCount "93"]
[EventDate "2024.05.30"]
[EventType "team-tourn"]
[EventCountry "GER"]
[SourceTitle "playchess.com"]
[Source "ChessBase"]
[SourceQuality "1"]
[TimeControl "40/5400+30:1800+30"]

1. c4 {[%emt 0:00:13]} Nf6 {[%emt 0:00:25]} 2. Nc3 {[%emt 0:00:21]} e6 {[%emt 0:00:11]} 3. e3 {[%emt 0:01:35]} d5 {[%emt 0:01:01]} 4. d4 {[%emt 0:00:09]} Bb4 {[%emt 0:02:38]} 5. Bd2 {[%emt 0:01:42]} O-O {[%emt 0:00:40]} 6. Nf3 {[%emt 0:00:12]} Re8 {[%emt 0:05:53]} 7. a3 {[%emt 0:03:16]} Bxc3 {[%emt 0:02:39]} 8. Bxc3 {[%emt 0:01:10]} Ne4 {[%emt 0:08:06]} 9. Qc2 {[%emt 0:05:14]} Nxc3 {[%emt 0:02:08]} 10. Qxc3 {[%emt 0:00:17]} Nc6 {[%emt 0:00:33]} 11. Be2 {[%emt 0:00:28]} Qf6 {[%emt 0:07:23]} 12. O-O {[%emt 0:00:33]} Bd7 {[%emt 0:01:29]} 13. Rac1 {[%emt 0:02:25]} Rac8 {[%emt 0:00:14]} 14. b4 {[%emt 0:00:21]} a6 {[%emt 0:03:31]} 15. a4 {[%emt 0:03:52]} dxc4 {[%emt 0:00:38]} 16. Bxc4 {[%emt 0:03:18]} e5 {[%emt 0:01:41]} 17. dxe5 {[%emt 0:01:34]} Nxe5 {[%emt 0:00:15]} 18. Nxe5 {[%emt 0:00:24]} Qxe5 {[%emt 0:00:24]} 19. Qb3 {[%emt 0:00:18]} Be6 {[%emt 0:03:02]} 20. Rfd1 {[%emt 0:01:14]} h6 {[%emt 0:04:30]} 21. Bxe6 {[%emt 0:04:06]} Rxe6 {[%emt 0:00:22]} 22. Rd7 {[%emt 0:00:27]} Re7 {[%emt 0:00:37]} 23. Rd4 {[%emt 0:03:16]} c6 {[%emt 0:03:40]} 24. h3 {[%emt 0:01:57]} Rce8 {[%emt 0:03:18]} 25. Rcd1 {[%emt 0:02:45]} Qf5 {[%emt 0:01:22]} 26. Rf4 {[%emt 0:03:59]} Qe6 {[%emt 0:03:36]} 27. Qd3 {[%emt 0:00:43]} Qa2 {[%emt 0:01:44]} 28. a5 {[%emt 0:00:23]} Re5 {[%emt 0:02:16]} 29. Qd7 {[%emt 0:04:25]} R5e7 {[%emt 0:00:11]} 30. Qd4 {[%emt 0:00:27]} Re5 {[%emt 0:01:18]} 31. Qd7 {[%emt 0:01:13]} R5e7 {[%emt 0:00:15]} 32. Qg4 {[%emt 0:01:51]} Qe6 {[%emt 0:01:54]} 33. Qf3 {[%emt 0:00:43]} Qb3 {[%emt 0:01:31]} 34. Rfd4 {[%emt 0:01:16]} Qc3 {[%emt 0:06:34]} 35. R1d3 {[%emt 0:04:53]} Qa1+ {[%emt 0:02:03]} 36. Kh2 {[%emt 0:00:07]} c5 {[%emt 0:01:04]} 37. bxc5 {[%emt 0:03:27]} Qxa5 {[%emt 0:00:14]} 38. c6 {[%emt 0:00:26]} Qc7+ {[%emt 0:00:36]} 39. Qg3 {[%emt 0:00:32]} Qxg3+ {[%emt 0:03:06]} 40. Kxg3 {[%emt 0:00:13]} bxc6 {[%emt 0:00:16]} 41. Ra3 {[%emt 0:30:07]} Ra8 {[%emt 0:30:30]} 42. Rda4 {[%emt 0:00:37]} Rea7 {[%emt 0:00:14]} 43. Rc3 {[%emt 0:00:09]} Rc8 {[%emt 0:00:19]} 44. Rca3 {[%emt 0:00:14]} Rca8 {[%emt 0:00:09]} 45. Rc3 {[%emt 0:00:11]} Rc8 {[%emt 0:00:05]} 46. Rca3 {[%emt 0:00:12]} Rca8 {[%emt 0:00:11]} 47. Rc3 {[%emt 0:00:13]} 1/2-1/2

[Event "DFMMLV 2024"]
[Site "Braunfels"]
[Date "2024.05.30"]
[Round "1.47"]
[White "Kaulfuss, Christa"]
[Black "Bazzazi, Elnaz"]
[Result "1/2-1/2"]
[ECO "C25"]
[WhiteElo "1816"]
[BlackElo "1840"]
[Annotator "NA RC"]
[PlyCount "59"]
[EventDate "2024.05.30"]
[EventType "team-tourn"]
[EventCountry "GER"]
[SourceTitle "playchess.com"]
[Source "ChessBase"]
[SourceQuality "1"]
[TimeControl "40/5400+30:1800+30"]

1. e4 {[%emt 0:00:03]} e5 {[%emt 0:00:07]} 2. Nc3 {[%emt 0:00:09]} Bc5 {[%emt 0:01:29]} 3. g3 {[%emt 0:00:29]} d6 {[%emt 0:01:02]} 4. Bg2 {[%emt 0:00:26]} a6 {[%emt 0:01:06]} 5. Nge2 {[%emt 0:00:43]} Nc6 {[%emt 0:00:27]} 6. h3 {[%emt 0:00:46]} Be6 {[%emt 0:00:48]} 7. O-O {[%emt 0:00:10]} Qd7 {[%emt 0:01:12]} 8. Kh2 {[%emt 0:00:10]} Nge7 {[%emt 0:09:40]} 9. d3 {[%emt 0:00:28]} f5 {[%emt 0:06:39]} 10. f4 {[%emt 0:01:53]} O-O {[%emt 0:03:44]} 11. a3 {[%emt 0:04:37]} Rad8 {[%emt 0:13:12]} 12. Nd5 {[%emt 0:03:09]} Nd4 {[%emt 0:04:44]} 13. c3 {[%emt 0:03:53]} Nxe2 {[%emt 0:01:05]} 14. Qxe2 {[%emt 0:00:12]} c6 {[%emt 0:01:36]} 15. Nxe7+ {[%emt 0:01:33]} Qxe7 {[%emt 0:00:07]} 16. Be3 {[%emt 0:02:06]} Bxe3 {[%emt 0:05:11]} 17. Qxe3 {[%emt 0:00:13]} exf4 {[%emt 0:02:04]} 18. gxf4 {[%emt 0:07:52]} Rde8 {[%emt 0:01:09]} 19. Rae1 {[%emt 0:02:23]} fxe4 {[%emt 0:02:05]} 20. dxe4 {[%emt 0:05:13]} Bc4 {[%emt 0:05:02]} 21. Rg1 {[%emt 0:01:55]} Qh4 {[%emt 0:07:31]} 22. f5 {[%emt 0:03:31]} Rxf5 {[%emt 0:08:40]} 23. Qd4 {[%emt 0:01:31]} Rg5 {[%emt 0:16:29]} 24. Qxc4+ {[%emt 0:01:00]} d5 {[%emt 0:00:07]} 25. Qd3 {[%emt 0:03:46]} Qf4+ {[%emt 0:03:31]} 26. Kh1 {[%emt 0:00:26]} Rg3 {[%emt 0:00:24]} 27. Qf1 {[%emt 0:01:20]} Qh4 {[%emt 0:00:20]} 28. Qf5 {[%emt 0:05:53]} g6 {[%emt 0:01:45]} 29. Qd7 {[%emt 0:01:01]} Re7 {[%emt 0:00:02]} 30. Rd1 {[%emt 0:01:33]} 1/2-1/2

[Event "DFMMLV 2024"]
[Site "Braunfels"]
[Date "2024.05.30"]
[Round "1.47"]
[White "Kaulfuss, Christa"]
[Black "Bazzazi, Elnaz"]
[Result "*"]
[ECO "C25"]
[WhiteElo "1816"]
[BlackElo "1840"]
[Annotator "NA RC"]
[PlyCount "75"]
[EventDate "2024.05.30"]
[EventType "team-tourn"]
[EventCountry "GER"]
[SourceTitle "playchess.com"]
[Source "ChessBase"]
[SourceQuality "1"]
[TimeControl "40/5400+30:1800+30"]

1. e4 {[%emt 0:00:03]} e5 {[%emt 0:00:07]} 2. Nc3 {[%emt 0:00:09]} Bc5 {[%emt 0:01:29]} 3. g3 {[%emt 0:00:29]} d6 {[%emt 0:01:02]} 4. Bg2 {[%emt 0:00:26]} a6 {[%emt 0:01:06]} 5. Nge2 {[%emt 0:00:43]} Nc6 {[%emt 0:00:27]} 6. h3 {[%emt 0:00:46]} Be6 {[%emt 0:00:48]} 7. O-O {[%emt 0:00:10]} Qd7 {[%emt 0:01:12]} 8. Kh2 {[%emt 0:00:10]} Nge7 {[%emt 0:09:40]} 9. d3 {[%emt 0:00:28]} f5 {[%emt 0:06:39]} 10. f4 {[%emt 0:01:53]} O-O {[%emt 0:03:44]} 11. a3 {[%emt 0:04:37]} Rad8 {[%emt 0:13:12]} 12. Nd5 {[%emt 0:03:09]} Nd4 {[%emt 0:04:44]} 13. c3 {[%emt 0:03:53]} Nxe2 {[%emt 0:01:05]} 14. Qxe2 {[%emt 0:00:12]} c6 {[%emt 0:01:36]} 15. Nxe7+ {[%emt 0:01:33]} Qxe7 {[%emt 0:00:07]} 16. Be3 {[%emt 0:02:06]} Bxe3 {[%emt 0:05:11]} 17. Qxe3 {[%emt 0:00:13]} exf4 {[%emt 0:02:04]} 18. gxf4 {[%emt 0:07:52]} Rde8 {[%emt 0:01:09]} 19. Rae1 {[%emt 0:02:23]} fxe4 {[%emt 0:02:05]} 20. dxe4 {[%emt 0:05:13]} Bc4 {[%emt 0:05:02]} 21. Rg1 {[%emt 0:01:55]} Qh4 {[%emt 0:07:31]} 22. f5 {[%emt 0:03:31]} Rxf5 {[%emt 0:08:40]} 23. Qd4 {[%emt 0:01:31]} Rg5 {[%emt 0:16:29]} 24. Qxc4+ {[%emt 0:01:00]} d5 {[%emt 0:00:07]} 25. Qd3 {[%emt 0:03:46]} Qf4+ {[%emt 0:03:31]} 26. Kh1 {[%emt 0:00:26]} Rg3 {[%emt 0:00:24]} 27. Qf1 {[%emt 0:01:20]} Qh4 {[%emt 0:00:20]} 28. Qf5 {[%emt 0:05:53]} g6 {[%emt 0:01:45]} 29. Qd7 {[%emt 0:01:01]} Re7 {[%emt 0:00:02]} 30. Qc8+ {[%emt 0:01:33]} Kg7 {[%emt 0:00:29]} 31. Ref1 {[%emt 0:00:20]} Kh6 {[%emt 0:01:11]} 32. Qf8+ {[%emt 0:00:30]} Rg7 {[%emt 0:00:30]} 33. Qf4+ {[%emt 0:00:30]} Qxf4 {[%emt 0:00:30]} 34. Rxf4 {[%emt 0:00:30]} dxe4 {[%emt 0:00:30]} 35. Rxe4 {[%emt 0:00:30]} Rd7 {[%emt 0:00:30]} 36. Kh2 {[%emt 0:00:30]} Rgd3 {[%emt 0:00:30]} 37. Rge1 {[%emt 0:00:30]} R7d6 {[%emt 0:00:30]} 38. R1e2 {[%emt 0:00:30]} *

[Event "DFMMLV 2024"]
[Site "Braunfels"]
[Date "2024.05.30"]
[Round "1.49"]
[White "Rieseler, Caroline"]
[Black "Vogel, Heike"]
[Result "1/2-1/2"]
[ECO "B12"]
[WhiteElo "2075"]
[BlackElo "2095"]
[Annotator "NA RC"]
[PlyCount "48"]
[EventDate "2024.05.30"]
[EventType "team-tourn"]
[EventCountry "GER"]
[SourceTitle "playchess.com"]
[Source "ChessBase"]
[SourceQuality "1"]
[TimeControl "40/5400+30:1800+30"]

1. e4 {[%emt 0:00:03]} c6 {[%emt 0:00:08]} 2. d4 {[%emt 0:00:15]} d5 {[%emt 0:00:04]} 3. e5 {[%emt 0:00:32]} Bf5 {[%emt 0:01:43]} 4. h4 {[%emt 0:00:36]} h5 {[%emt 0:01:13]} 5. Bd3 {[%emt 0:00:22]} Bxd3 {[%emt 0:05:24]} 6. Qxd3 {[%emt 0:00:06]} e6 {[%emt 0:00:25]} 7. Nf3 {[%emt 0:00:08]} Ne7 {[%emt 0:02:38]} 8. Bg5 {[%emt 0:07:36]} Qb6 {[%emt 0:02:04]} 9. Nbd2 {[%emt 0:01:07]} Nf5 {[%emt 0:02:44]} 10. O-O {[%emt 0:00:11]} Nd7 {[%emt 0:02:32]} 11. c4 {[%emt 0:11:37]} Be7 {[%emt 0:10:22]} 12. Bxe7 {[%emt 0:05:27]} Nxe7 {[%emt 0:01:47]} 13. b3 {[%emt 0:07:43]} f6 {[%emt 0:22:49]} 14. exf6 {[%emt 0:02:45]} gxf6 {[%emt 0:00:30]} 15. Rfe1 {[%emt 0:01:57]} Nf8 {[%emt 0:04:25]} 16. g3 {[%emt 0:20:03]} Kf7 {[%emt 0:09:06]} 17. Re2 {[%emt 0:02:33]} Rg8 {[%emt 0:02:50]} 18. Rae1 {[%emt 0:00:40]} Qc7 {[%emt 0:01:04]} 19. Nf1 {[%emt 0:03:27]} Re8 {[%emt 0:06:07]} 20. Kh2 {[%emt 0:05:07]} Rg4 {[%emt 0:08:00]} 21. Ne3 {[%emt 0:16:05]} Re4 {[%emt 0:06:13]} 22. Ng2 {[%emt 0:02:17]} Rxe2 {[%emt 0:00:22]} 23. Rxe2 {[%emt 0:01:46]} Neg6 {[%emt 0:01:50]} 24. Qe3 {[%emt 0:03:51]} Kg7 {[%emt 0:01:08]} 1/2-1/2

[Event "DFMMLV 2024"]
[Site "Braunfels"]
[Date "2024.05.30"]
[Round "1.50"]
[White "Zimmer, Elke"]
[Black "Ries, Jutta"]
[Result "0-1"]
[ECO "C11"]
[WhiteElo "1920"]
[BlackElo "2025"]
[Annotator "NA RC"]
[PlyCount "54"]
[EventDate "2024.05.30"]
[EventType "team-tourn"]
[EventCountry "GER"]
[SourceTitle "playchess.com"]
[Source "ChessBase"]
[SourceQuality "1"]
[TimeControl "40/5400+30:1800+30"]

1. e4 {[%emt 0:00:05]} Nf6 {[%emt 0:00:03]} 2. Nc3 {[%emt 0:00:13]} d5 {[%emt 0:00:05]} 3. e5 {[%emt 0:00:55]} Nfd7 {[%emt 0:00:04]} 4. d4 {[%emt 0:01:40]} c5 {[%emt 0:00:21]} 5. dxc5 {[%emt 0:03:32]} e6 {[%emt 0:03:07]} 6. Nf3 {[%emt 0:01:32]} Nc6 {[%emt 0:00:33]} 7. Bg5 {[%emt 0:02:06]} Qa5 {[%emt 0:04:08]} 8. a3 {[%emt 0:01:55]} Qxc5 {[%emt 0:11:14]} 9. Be3 {[%emt 0:08:43]} Qa5 {[%emt 0:02:53]} 10. Bb5 {[%emt 0:00:08]} Qc7 {[%emt 0:02:20]} 11. Bd4 {[%emt 0:11:26]} a6 {[%emt 0:15:47]} 12. Bxc6 {[%emt 0:03:23]} bxc6 {[%emt 0:00:12]} 13. b4 {[%emt 0:16:16]} a5 {[%emt 0:06:38]} 14. Rb1 {[%emt 0:05:01]} axb4 {[%emt 0:03:04]} 15. axb4 {[%emt 0:00:07]} Ba6 {[%emt 0:08:22]} 16. Ne2 {[%emt 0:01:05]} Bxb4+ {[%emt 0:07:30]} 17. Rxb4 {[%emt 0:01:20]} c5 {[%emt 0:00:17]} 18. Rb2 {[%emt 0:04:58]} cxd4 {[%emt 0:06:14]} 19. Qxd4 {[%emt 0:00:26]} O-O {[%emt 0:03:05]} 20. Kd2 {[%emt 0:00:34]} Rfc8 {[%emt 0:05:06]} 21. Nc3 {[%emt 0:00:46]} Nc5 {[%emt 0:01:17]} 22. Ne1 {[%emt 0:10:08]} Qa5 {[%emt 0:05:30]} 23. Qb4 {[%emt 0:00:23]} Qc7 {[%emt 0:02:53]} 24. Qd4 {[%emt 0:00:30]} Bc4 {[%emt 0:03:16]} 25. Nd3 {[%emt 0:02:13]} Bxd3 {[%emt 0:04:42]} 26. cxd3 {[%emt 0:00:18]} Ra3 {[%emt 0:01:39]} 27. Qb4 {[%emt 0:00:40]} Rxc3 {[%emt 0:00:29]} 0-1

[Event "DFMMLV 2024"]
[Site "Braunfels"]
[Date "2024.05.30"]
[Round "1.51"]
[White "Reinecke, Katharina"]
[Black "Weinmann, Helene"]
[Result "1-0"]
[ECO "E11"]
[WhiteElo "1949"]
[BlackElo "1655"]
[Annotator "NA RC"]
[PlyCount "77"]
[EventDate "2024.05.30"]
[EventType "team-tourn"]
[EventCountry "GER"]
[SourceTitle "playchess.com"]
[Source "ChessBase"]
[SourceQuality "1"]
[TimeControl "40/5400+30:1800+30"]

1. d4 {[%emt 0:00:03]} d5 {[%emt 0:00:21]} 2. Nf3 {[%emt 0:00:01]} Nf6 {[%emt 0:00:16]} 3. c4 {[%emt 0:00:09]} e6 {[%emt 0:00:08]} 4. g3 {[%emt 0:00:04]} c6 {[%emt 0:00:29]} 5. Bg2 {[%emt 0:00:24]} Bb4+ {[%emt 0:00:27]} 6. Bd2 {[%emt 0:01:05]} Bxd2+ {[%emt 0:00:20]} 7. Nbxd2 {[%emt 0:00:54]} O-O {[%emt 0:00:19]} 8. O-O {[%emt 0:01:12]} Nbd7 {[%emt 0:01:08]} 9. Qc2 {[%emt 0:01:37]} Nb6 {[%emt 0:01:42]} 10. c5 {[%emt 0:05:57]} Nbd7 {[%emt 0:00:32]} 11. b4 {[%emt 0:02:53]} Re8 {[%emt 0:00:34]} 12. Ne5 {[%emt 0:03:20]} Nxe5 {[%emt 0:01:34]} 13. dxe5 {[%emt 0:00:04]} Nd7 {[%emt 0:00:12]} 14. f4 {[%emt 0:07:16]} f5 {[%emt 0:00:55]} 15. Kh1 {[%emt 0:07:09]} Nf8 {[%emt 0:01:04]} 16. a4 {[%emt 0:03:28]} Bd7 {[%emt 0:00:45]} 17. Qd3 {[%emt 0:08:56]} a6 {[%emt 0:01:00]} 18. Nf3 {[%emt 0:02:56]} Ng6 {[%emt 0:01:30]} 19. e3 {[%emt 0:02:08]} Rb8 {[%emt 0:01:33]} 20. Rg1 {[%emt 0:02:49]} b5 {[%emt 0:02:46]} 21. Nd4 {[%emt 0:05:37]} Rf8 {[%emt 0:01:49]} 22. axb5 {[%emt 0:01:28]} axb5 {[%emt 0:00:04]} 23. Ra7 {[%emt 0:01:03]} Ra8 {[%emt 0:03:33]} 24. Rga1 {[%emt 0:00:32]} Rxa7 {[%emt 0:00:15]} 25. Rxa7 {[%emt 0:00:05]} Qc8 {[%emt 0:00:42]} 26. Qa3 {[%emt 0:01:26]} Rd8 {[%emt 0:01:24]} 27. Qa5 {[%emt 0:03:44]} Qb8 {[%emt 0:02:49]} 28. Rc7 {[%emt 0:04:29]} Nf8 {[%emt 0:01:45]} 29. Rxc6 {[%emt 0:02:24]} Bxc6 {[%emt 0:00:48]} 30. Nxc6 {[%emt 0:00:05]} Qa8 {[%emt 0:01:39]} 31. Nxd8 {[%emt 0:00:15]} Qb8 {[%emt 0:02:29]} 32. Nc6 {[%emt 0:01:20]} Qb7 {[%emt 0:01:11]} 33. Nd4 {[%emt 0:00:16]} Kf7 {[%emt 0:00:50]} 34. Nxb5 {[%emt 0:00:31]} Kg6 {[%emt 0:02:08]} 35. Nd4 {[%emt 0:01:11]} Qc8 {[%emt 0:01:28]} 36. c6 {[%emt 0:00:53]} Kf7 {[%emt 0:02:47]} 37. b5 {[%emt 0:00:14]} Ng6 {[%emt 0:01:26]} 38. b6 {[%emt 0:02:28]} Ne7 {[%emt 0:01:33]} 39. b7 {[%emt 0:01:05]} 1-0

[Event "DFMMLV 2024"]
[Site "Braunfels"]
[Date "2024.05.30"]
[Round "1.52"]
[White "Lebioda-Dette, Kordula"]
[Black "Frank, Michelle Viviane"]
[Result "0-1"]
[ECO "B13"]
[WhiteElo "1821"]
[BlackElo "1899"]
[Annotator "NA RC"]
[PlyCount "62"]
[EventDate "2024.05.30"]
[EventType "team-tourn"]
[EventCountry "GER"]
[SourceTitle "playchess.com"]
[Source "ChessBase"]
[SourceQuality "1"]
[TimeControl "40/5400+30:1800+30"]

1. e4 {[%emt 0:00:04]} c6 {[%emt 0:00:11]} 2. d4 {[%emt 0:00:09]} d5 {[%emt 0:00:06]} 3. exd5 {[%emt 0:00:06]} cxd5 {[%emt 0:00:14]} 4. Bd3 {[%emt 0:00:10]} Nc6 {[%emt 0:00:14]} 5. c3 {[%emt 0:00:06]} Nf6 {[%emt 0:02:09]} 6. h3 {[%emt 0:00:53]} e6 {[%emt 0:03:47]} 7. Nf3 {[%emt 0:00:23]} Bd6 {[%emt 0:00:19]} 8. Bg5 {[%emt 0:00:20]} h6 {[%emt 0:01:54]} 9. Bxf6 {[%emt 0:04:09]} Qxf6 {[%emt 0:02:45]} 10. O-O {[%emt 0:00:47]} Bd7 {[%emt 0:02:29]} 11. Na3 {[%emt 0:02:39]} a6 {[%emt 0:04:16]} 12. Nc2 {[%emt 0:00:36]} g5 {[%emt 0:05:47]} 13. Ne3 {[%emt 0:05:58]} h5 {[%emt 0:00:49]} 14. Qe2 {[%emt 0:00:56]} O-O-O {[%emt 0:00:41]} 15. Ne5 {[%emt 0:09:46]} Nxe5 {[%emt 0:00:56]} 16. dxe5 {[%emt 0:00:29]} Qxe5 {[%emt 0:00:07]} 17. g3 {[%emt 0:04:14]} h4 {[%emt 0:03:13]} 18. f4 {[%emt 0:14:39]} Qg7 {[%emt 0:01:03]} 19. g4 {[%emt 0:05:41]} gxf4 {[%emt 0:00:27]} 20. Nc2 {[%emt 0:03:40]} e5 {[%emt 0:03:46]} 21. Nb4 {[%emt 0:03:39]} Bc5+ {[%emt 0:01:02]} 22. Kh2 {[%emt 0:01:18]} f3 {[%emt 0:01:13]} 23. Qxf3 {[%emt 0:05:35]} e4 {[%emt 0:00:07]} 24. Bxe4 {[%emt 0:00:14]} Bd6+ {[%emt 0:01:31]} 25. Kh1 {[%emt 0:01:08]} Qe5 {[%emt 0:00:09]} 26. Rf2 {[%emt 0:04:11]} dxe4 {[%emt 0:00:16]} 27. Qe2 {[%emt 0:00:46]} Bxb4 {[%emt 0:00:44]} 28. cxb4 {[%emt 0:00:35]} e3 {[%emt 0:00:12]} 29. Rc1+ {[%emt 0:05:58]} Kb8 {[%emt 0:00:03]} 30. Rxf7 {[%emt 0:06:23]} Qd5+ {[%emt 0:00:54]} 31. Rf3 {[%emt 0:00:41]} Rhf8 {[%emt 0:00:21]} 0-1

[Event "DFMMLV 2024"]
[Site "Braunfels"]
[Date "2024.05.31"]
[Round "2.1"]
[White "Sickmann, Lisa"]
[Black "Klek, Hanna Marie"]
[Result "0-1"]
[ECO "C91"]
[WhiteElo "1980"]
[BlackElo "2294"]
[Annotator "RC"]
[PlyCount "72"]
[EventDate "2024.05.30"]
[EventType "team-tourn"]
[EventCountry "GER"]
[SourceTitle "playchess.com"]
[Source "ChessBase"]
[SourceQuality "1"]
[TimeControl "40/5400+30:1800+30"]

1. e4 {[%emt 0:00:10]} e5 {[%emt 0:00:07]} 2. Nf3 {[%emt 0:00:05]} Nc6 {[%emt 0:00:04]} 3. Bb5 {[%emt 0:00:04]} a6 {[%emt 0:00:06]} 4. Ba4 {[%emt 0:00:05]} Nf6 {[%emt 0:00:07]} 5. O-O {[%emt 0:00:18]} Be7 {[%emt 0:00:15]} 6. Re1 {[%emt 0:00:05]} b5 {[%emt 0:00:12]} 7. Bb3 {[%emt 0:00:09]} d6 {[%emt 0:00:04]} 8. c3 {[%emt 0:00:07]} O-O {[%emt 0:00:12]} 9. d4 {[%emt 0:00:06]} Bg4 {[%emt 0:00:11]} 10. Be3 {[%emt 0:00:35]} Bh5 {[%emt 0:00:09]} 11. Nbd2 {[%emt 0:02:39]} exd4 {[%emt 0:16:15]} 12. cxd4 {[%emt 0:01:51]} Nb4 {[%emt 0:05:26]} 13. Nf1 {[%emt 0:15:55]} c5 {[%emt 0:00:58]} 14. a3 {[%emt 0:02:42]} Nc6 {[%emt 0:03:41]} 15. dxc5 {[%emt 0:02:07]} dxc5 {[%emt 0:01:35]} 16. Ng3 {[%emt 0:01:15]} Bg6 {[%emt 0:05:49]} 17. e5 {[%emt 0:05:38]} Ng4 {[%emt 0:12:54]} 18. Bd5 {[%emt 0:03:46]} Nxe3 {[%emt 0:01:11]} 19. Rxe3 {[%emt 0:00:23]} Qc7 {[%emt 0:04:09]} 20. Qe2 {[%emt 0:08:47]} Nd4 {[%emt 0:07:04]} 21. Nxd4 {[%emt 0:13:18]} cxd4 {[%emt 0:00:08]} 22. Rf3 {[%emt 0:03:00]} d3 {[%emt 0:00:56]} 23. Qd2 {[%emt 0:05:25]} Rad8 {[%emt 0:02:06]} 24. Bb3 {[%emt 0:04:30]} Qxe5 {[%emt 0:02:10]} 25. Re1 {[%emt 0:01:50]} Qg5 {[%emt 0:05:12]} 26. Rfe3 {[%emt 0:02:55]} Qh6 {[%emt 0:09:37]} 27. Qd1 {[%emt 0:04:28]} Bc5 {[%emt 0:04:52]} 28. Rf3 {[%emt 0:01:02]} Bd6 {[%emt 0:06:21]} 29. h3 {[%emt 0:01:46]} d2 {[%emt 0:03:53]} 30. Re2 {[%emt 0:01:07]} Bf4 {[%emt 0:00:39]} 31. Re7 {[%emt 0:03:27]} Qg5 {[%emt 0:03:28]} 32. Ra7 {[%emt 0:01:17]} Bxg3 {[%emt 0:00:21]} 33. Rxg3 {[%emt 0:00:46]} Qc5 {[%emt 0:00:31]} 34. Rxa6 {[%emt 0:01:24]} Bh5 {[%emt 0:00:44]} 35. Rg4 {[%emt 0:01:59]} Bxg4 {[%emt 0:01:20]} 36. hxg4 {[%emt 0:00:16]} Rfe8 {[%emt 0:00:26]} 0-1

[Event "DFMMLV 2024"]
[Site "Braunfels"]
[Date "2024.05.31"]
[Round "2.5"]
[White "Mundt, Alexandra"]
[Black "Vidonyak, Nellya"]
[Result "0-1"]
[ECO "A04"]
[WhiteElo "1874"]
[BlackElo "2098"]
[Annotator "NA RC"]
[PlyCount "70"]
[EventDate "2024.05.30"]
[EventType "team-tourn"]
[EventCountry "GER"]
[SourceTitle "playchess.com"]
[Source "ChessBase"]
[SourceQuality "1"]
[TimeControl "40/5400+30:1800+30"]

1. Nf3 {[%emt 0:00:02]} d6 {[%emt 0:00:36]} 2. g3 {[%emt 0:00:18]} g6 {[%emt 0:00:13]} 3. Bg2 {[%emt 0:00:11]} e5 {[%emt 0:00:37]} 4. d3 {[%emt 0:00:07]} Bg7 {[%emt 0:00:11]} 5. O-O {[%emt 0:02:21]} Ne7 {[%emt 0:00:20]} 6. e4 {[%emt 0:02:29]} O-O {[%emt 0:00:12]} 7. h3 {[%emt 0:12:52] A04: Unusual lines after 1 Nf3 and King's Indian Attack.} f5 {[%emt 0:00:59]} 8. Bg5 {[%emt 0:00:40]} (8. exf5 $11 gxf5 9. Nh4) 8... h6 {[%emt 0:00:56]} 9. Bxe7 {[%emt 0:00:06]} Qxe7 {[%emt 0:00:10]} 10. Nh4 {[%emt 0:00:04]} Kh7 {[%emt 0:08:14]} 11. Nc3 {[%emt 0:13:14]} c6 {[%emt 0:09:26]} 12. f4 {[%emt 0:11:14]} exf4 {[%emt 0:05:09]} 13. Rxf4 {[%emt 0:00:01]} (13. exf5 $11 Bxf5 14. Rxf4) 13... Be5 {[%emt 0:10:03]} 14. Nxg6 {[%emt 0:03:08]} Kxg6 {[%emt 0:00:58]} 15. exf5+ {[%emt 0:00:07]} Rxf5 {[%emt 0:05:31]} 16. Qe2 {[%emt 0:21:00]} Rxf4 {[%emt 0:04:28]} 17. gxf4 {[%emt 0:00:01]} Bd4+ {[%emt 0:00:17]} 18. Kh2 {[%emt 0:00:31]} Qxe2 {[%emt 0:01:40]} 19. Nxe2 {[%emt 0:00:01]} Be3 {[%emt 0:00:41]} 20. Rf1 {[%emt 0:02:21]} Bf5 $19 {[%emt 0:02:04]} 21. Rf3 {[%emt 0:11:54]} Bd2 {[%emt 0:01:35]} 22. Rg3+ {[%emt 0:04:00]} Kf7 {[%emt 0:02:15]} 23. Be4 {[%emt 0:00:20]} Be6 {[%emt 0:09:57]} 24. Bg6+ {[%emt 0:03:20]} Kf6 {[%emt 0:06:18]} 25. Bh7 {[%emt 0:09:04]} Nd7 {[%emt 0:03:53]} 26. Rg6+ {[%emt 0:00:06]} Kf7 {[%emt 0:01:38]} 27. Rxh6 {[%emt 0:00:45]} Nf6 {[%emt 0:01:04]} 28. Kg3 {[%emt 0:01:20]} Kg7 {[%emt 0:11:11]} 29. Rg6+ {[%emt 0:00:44]} Kxh7 {[%emt 0:04:47]} 30. Rxf6 {[%emt 0:00:02]} Rg8+ {[%emt 0:01:05]} 31. Kf3 {[%emt 0:02:17]} Bxh3 {[%emt 0:04:07]} 32. Ng3 {[%emt 0:00:01]} Bg4+ {[%emt 0:01:13]} 33. Kf2 {[%emt 0:00:12]} Kg7 {[%emt 0:01:25]} 34. Rxd6 {[%emt 0:01:36]} Bb4 {[%emt 0:00:42]} 35. Rd4 {[%emt 0:00:39]} Bc5 {[%emt 0:00:02]} 0-1